[Event "ESCC Women 65 2019"]
[Site "Halkidik"]
[Date "2019.04.06"]
[Round "1.1"]
[White "Sinchurina, Tatiana"]
[Black "Podlovna, Stella"]
[Result "1-0"]
[ECO "A76"]
[WhiteElo "1967"]
[BlackElo "1599"]
[Annotator "NA RC"]
[PlyCount "113"]
[EventDate "2019.04.06"]
[EventType "swiss"]
[EventCountry "GRE"]
[SourceTitle "playchess.com"]
[Source "ChessBase"]
[SourceQuality "1"]
[TimeControl "40/5400+30:1800+30"]

1. d4 {[%emt 0:00:00]} Nf6 {[%emt 0:00:00]} 2. c4 {[%emt 0:00:00]} e6 {[%emt 0:00:00]} 3. Nc3 {[%emt 0:00:00]} c5 {[%emt 0:00:00]} 4. d5 {[%emt 0:00:12]} exd5 {[%emt 0:00:00]} 5. cxd5 {[%emt 0:00:07]} d6 {[%emt 0:00:00]} 6. e4 {[%emt 0:00:11]} a6 {[%emt 0:00:00]} 7. a4 {[%emt 0:01:03]} g6 {[%emt 0:00:05]} 8. Be2 {[%emt 0:00:48]} Bg7 {[%emt 0:00:05]} 9. Nf3 {[%emt 0:00:07]} O-O {[%emt 0:00:45]} 10. O-O {[%emt 0:02:05]} Re8 {[%emt 0:00:07]} 11. Qc2 {[%emt 0:04:16]} Bg4 {[%emt 0:01:21]} 12. h3 {[%emt 0:03:49]} Bxf3 {[%emt 0:02:57]} 13. Bxf3 {[%emt 0:00:34]} Nbd7 {[%emt 0:00:10]} 14. a5 {[%emt 0:01:19]} Qc7 {[%emt 0:14:31]} 15. Be3 {[%emt 0:04:26]} Rab8 {[%emt 0:04:48]} 16. Rfc1 {[%emt 0:07:28]} b5 {[%emt 0:01:43]} 17. axb6 {[%emt 0:00:09]} Rxb6 {[%emt 0:00:05]} 18. Be2 {[%emt 0:06:25]} Nb8 {[%emt 0:03:31]} 19. Ra4 {[%emt 0:09:06]} Qb7 {[%emt 0:03:15]} 20. Rb1 {[%emt 0:03:20]} Rb4 {[%emt 0:04:23]} 21. f3 {[%emt 0:02:54]} Nfd7 {[%emt 0:06:18]} 22. Rxb4 {[%emt 0:07:54]} cxb4 {[%emt 0:02:54]} 23. Na4 {[%emt 0:00:57]} f5 {[%emt 0:05:49]} 24. Rc1 {[%emt 0:00:42]} fxe4 {[%emt 0:00:38]} 25. fxe4 {[%emt 0:00:03]} Nf6 {[%emt 0:00:06]} 26. Bd3 {[%emt 0:01:44]} Qe7 {[%emt 0:01:50]} 27. Bf2 {[%emt 0:05:23]} Nbd7 {[%emt 0:07:42]} 28. Re1 {[%emt 0:00:41]} Nh5 {[%emt 0:01:49]} 29. Bxa6 {[%emt 0:07:03]} Be5 {[%emt 0:00:37]} 30. Qd1 {[%emt 0:13:28]} Rf8 {[%emt 0:03:00]} 31. Qg4 {[%emt 0:01:37]} Rxf2 {[%emt 0:12:15]} 32. Kxf2 {[%emt 0:00:18]} Bg3+ {[%emt 0:00:07]} 33. Ke2 {[%emt 0:00:02]} Nf4+ {[%emt 0:03:54]} 34. Kd1 {[%emt 0:00:19]} Bxe1 {[%emt 0:00:25]} 35. Qxf4 {[%emt 0:00:03]} Bh4 {[%emt 0:00:35]} 36. Qg4 {[%emt 0:03:29]} Nf8 {[%emt 0:01:03]} 37. Kc2 {[%emt 0:03:30]} Bf6 {[%emt 0:00:39]} 38. Kb3 {[%emt 0:00:22]} Qa7 {[%emt 0:00:36]} 39. Bb5 {[%emt 0:02:55]} Qe3+ {[%emt 0:12:45]} 40. Kxb4 {[%emt 0:00:00]} Bxb2 {[%emt 0:00:00]} 41. Nxb2 {[%emt 0:03:23]} Qc5+ {[%emt 0:01:06]} 42. Ka4 {[%emt 0:01:29]} Qc2+ {[%emt 0:00:12]} 43. Ka3 {[%emt 0:00:04]} Qc5+ {[%emt 0:00:07]} 44. Kb3 {[%emt 0:04:58]} Qxb5+ {[%emt 0:00:06]} 45. Kc3 {[%emt 0:00:11]} Qa5+ {[%emt 0:00:19]} 46. Kc2 {[%emt 0:05:40]} Qc5+ {[%emt 0:00:18]} 47. Kb1 {[%emt 0:02:35]} Qg1+ {[%emt 0:00:34]} 48. Nd1 {[%emt 0:02:54]} Qb6+ {[%emt 0:00:32]} 49. Kc2 {[%emt 0:00:20]} Kg7 {[%emt 0:03:57]} 50. Nc3 {[%emt 0:01:11]} Qc7 {[%emt 0:01:57]} 51. Qh4 {[%emt 0:04:13]} h6 {[%emt 0:00:38]} 52. e5 {[%emt 0:01:10]} dxe5 {[%emt 0:00:45]} 53. Qb4 {[%emt 0:00:01]} Qd7 {[%emt 0:03:53]} 54. g4 {[%emt 0:03:55]} Nh7 {[%emt 0:02:23]} 55. Qb8 {[%emt 0:00:50]} Nf6 {[%emt 0:02:03]} 56. Qxe5 {[%emt 0:00:18]} Kf7 {[%emt 0:00:03]} 57. Kd3 {[%emt 0:01:20]} 1-0

[Event "ESCC Women 65 2019"]
[Site "Halkidik"]
[Date "2019.04.06"]
[Round "1.4"]
[White "Burchardt, Brigitte"]
[Black "Ristoja, Aulikki"]
[Result "0-1"]
[ECO "B01"]
[WhiteElo "2136"]
[BlackElo "1551"]
[Annotator "NA"]
[PlyCount "31"]
[EventDate "2019.04.06"]
[EventType "swiss"]
[EventCountry "GRE"]
[SourceTitle "playchess.com"]
[Source "ChessBase"]
[SourceQuality "1"]
[TimeControl "40/5400+30:1800+30"]

1. e4 {[%emt 0:00:00]} d5 {[%emt 0:00:00]} 2. exd5 {[%emt 0:00:00]} Qxd5 {[%emt 0:00:00]} 3. Nc3 {[%emt 0:00:37]} Qa5 {[%emt 0:00:00]} 4. d4 {[%emt 0:00:11]} c6 {[%emt 0:00:38]} 5. Nf3 {[%emt 0:00:06]} Bg4 {[%emt 0:00:15]} 6. Be2 {[%emt 0:00:06]} Nf6 {[%emt 0:01:16]} 7. O-O {[%emt 0:02:45]} Nbd7 {[%emt 0:04:33]} 8. h3 {[%emt 0:01:23]} Bxf3 {[%emt 0:01:18]} 9. Bxf3 {[%emt 0:00:05]} e6 {[%emt 0:01:05]} 10. Bf4 {[%emt 0:03:04]} Nd5 {[%emt 0:04:49]} 11. Nxd5 {[%emt 0:07:16]} cxd5 {[%emt 0:01:42]} 12. c4 {[%emt 0:02:39]} dxc4 {[%emt 0:13:31]} 13. Bxb7 {[%emt 0:03:53]} Rd8 {[%emt 0:00:32]} 14. d5 {[%emt 0:04:04]} Bc5 {[%emt 0:04:52]} 15. dxe6 {[%emt 0:01:23]} Ne5 {[%emt 0:08:44]} 16. exf7+ {[%emt 0:02:25]} 0-1

[Event "ESCC Women 65 2019"]
[Site "Halkidik"]
[Date "2019.04.06"]
[Round "1.5"]
[White "Khmiadashvili, Tamar"]
[Black "Kabanova, Irina"]
[Result "1-0"]
[ECO "D05"]
[WhiteElo "1976"]
[BlackElo "1816"]
[Annotator "NA RC"]
[PlyCount "97"]
[EventDate "2019.04.06"]
[EventType "swiss"]
[EventCountry "GRE"]
[SourceTitle "playchess.com"]
[Source "ChessBase"]
[SourceQuality "1"]
[TimeControl "40/5400+30:1800+30"]

1. Nf3 {[%emt 0:00:00]} Nf6 {[%emt 0:00:00]} 2. d4 {[%emt 0:00:00]} e6 {[%emt 0:00:26]} 3. Nbd2 {[%emt 0:00:24]} d5 {[%emt 0:00:38]} 4. e3 {[%emt 0:00:17]} c5 {[%emt 0:01:06]} 5. Bb5+ {[%emt 0:01:24]} Bd7 {[%emt 0:00:53]} 6. Be2 {[%emt 0:04:24]} Nc6 {[%emt 0:01:06]} 7. Ne5 {[%emt 0:01:43]} Qc7 {[%emt 0:03:32]} 8. Nxd7 {[%emt 0:03:35]} Nxd7 {[%emt 0:01:04]} 9. Nf3 {[%emt 0:01:45]} Nf6 {[%emt 0:01:53]} 10. O-O {[%emt 0:03:19]} Be7 {[%emt 0:01:10]} 11. c4 {[%emt 0:04:58]} O-O {[%emt 0:02:20]} 12. cxd5 {[%emt 0:02:00]} Nxd5 {[%emt 0:01:40]} 13. dxc5 {[%emt 0:09:12]} Bxc5 {[%emt 0:09:03]} 14. Qc2 {[%emt 0:02:23]} Be7 {[%emt 0:04:15]} 15. Bd2 {[%emt 0:04:12]} Rac8 {[%emt 0:01:20]} 16. Qe4 {[%emt 0:06:24]} Bf6 {[%emt 0:07:09]} 17. Rab1 {[%emt 0:02:27]} Qe7 {[%emt 0:02:43]} 18. Qa4 {[%emt 0:10:06]} Nb6 {[%emt 0:07:09]} 19. Qb3 {[%emt 0:02:01]} Rfd8 {[%emt 0:09:59]} 20. Rfd1 {[%emt 0:03:22]} h6 {[%emt 0:01:20]} 21. a4 {[%emt 0:01:38]} Ne5 {[%emt 0:10:36]} 22. a5 {[%emt 0:06:47]} Nbc4 {[%emt 0:03:10]} 23. Bb4 {[%emt 0:02:41]} Nxf3+ {[%emt 0:02:09]} 24. gxf3 {[%emt 0:04:01]} Qc7 {[%emt 0:09:05]} 25. Rxd8+ {[%emt 0:03:49]} Bxd8 {[%emt 0:00:24]} 26. Rc1 {[%emt 0:01:03]} b5 {[%emt 0:00:22]} 27. axb6 {[%emt 0:00:28]} Qxb6 {[%emt 0:00:11]} 28. Rxc4 {[%emt 0:00:38]} Rb8 {[%emt 0:00:49]} 29. Qc2 {[%emt 0:03:20]} a5 {[%emt 0:00:55]} 30. Ba3 {[%emt 0:01:49]} Qb7 {[%emt 0:00:30]} 31. Qe4 {[%emt 0:01:45]} Qb5 {[%emt 0:03:06]} 32. Bd3 {[%emt 0:01:29]} Qg5+ {[%emt 0:00:55]} 33. Kf1 {[%emt 0:01:05]} g6 {[%emt 0:00:22]} 34. h4 {[%emt 0:03:10]} Qf5 {[%emt 0:02:32]} 35. Qxf5 {[%emt 0:00:26]} gxf5 {[%emt 0:00:40]} 36. Ke2 {[%emt 0:01:28]} Bf6 {[%emt 0:00:15]} 37. Ra4 {[%emt 0:02:46]} Bxb2 {[%emt 0:03:18]} 38. Rxa5 {[%emt 0:01:33]} Bxa3 {[%emt 0:02:52]} 39. Rxa3 {[%emt 0:00:06]} Rb2+ {[%emt 0:00:44]} 40. Kf1 {[%emt 0:00:00]} Kg7 {[%emt 0:00:00]} 41. f4 {[%emt 0:00:57]} Kf6 {[%emt 0:03:48]} 42. Be2 {[%emt 0:01:17]} Rb8 {[%emt 0:01:06]} 43. Ra7 {[%emt 0:01:05]} Re8 {[%emt 0:01:47]} 44. Bh5 {[%emt 0:01:27]} Re7 {[%emt 0:02:03]} 45. Rxe7 {[%emt 0:00:35]} Kxe7 {[%emt 0:00:04]} 46. Ke2 {[%emt 0:00:22]} f6 {[%emt 0:00:02]} 47. Kd3 {[%emt 0:00:40]} e5 {[%emt 0:00:44]} 48. Bg6 {[%emt 0:04:53]} Ke6 {[%emt 0:01:30]} 49. Kc4 {[%emt 0:00:41]} 1-0

[Event "ESCC Women 65 2019"]
[Site "Halkidik"]
[Date "2019.04.07"]
[Round "2.1"]
[White "Podlovna, Stella"]
[Black "Kabanova, Irina"]
[Result "1/2-1/2"]
[ECO "D37"]
[WhiteElo "1599"]
[BlackElo "1816"]
[Annotator "NA"]
[PlyCount "54"]
[EventDate "2019.04.06"]
[EventType "swiss"]
[EventCountry "GRE"]
[SourceTitle "playchess.com"]
[Source "ChessBase"]
[SourceQuality "1"]
[TimeControl "40/5400+30:1800+30"]

1. d4 {[%emt 0:00:28]} Nf6 {[%emt 0:00:00]} 2. c4 {[%emt 0:00:30]} e6 {[%emt 0:00:00]} 3. e3 {[%emt 0:00:25]} d5 {[%emt 0:00:05]} 4. Nf3 {[%emt 0:00:48]} Be7 {[%emt 0:00:29]} 5. Bd3 {[%emt 0:00:54]} dxc4 {[%emt 0:01:18]} 6. Bxc4 {[%emt 0:03:28]} c5 {[%emt 0:04:25]} 7. O-O {[%emt 0:00:47]} O-O {[%emt 0:00:13]} 8. Nc3 {[%emt 0:00:28]} a6 {[%emt 0:00:22]} 9. a4 {[%emt 0:02:01]} Nc6 {[%emt 0:01:45]} 10. b3 {[%emt 0:00:55]} Qc7 {[%emt 0:04:58]} 11. Bb2 {[%emt 0:04:17]} Rd8 {[%emt 0:02:49]} 12. Ne2 {[%emt 0:00:36]} Rb8 {[%emt 0:03:07]} 13. Qc1 {[%emt 0:05:15]} Na5 {[%emt 0:02:40]} 14. Qc2 {[%emt 0:07:07]} Nxc4 {[%emt 0:11:05]} 15. bxc4 {[%emt 0:00:43]} b6 {[%emt 0:00:38]} 16. Ng3 {[%emt 0:07:26]} Bb7 {[%emt 0:02:25]} 17. Ne5 {[%emt 0:07:19]} Bd6 {[%emt 0:08:40]} 18. f4 {[%emt 0:07:21]} cxd4 {[%emt 0:06:02]} 19. Bxd4 {[%emt 0:06:44]} Bc5 {[%emt 0:00:29]} 20. Rfd1 {[%emt 0:01:54]} Bxd4 {[%emt 0:01:18]} 21. exd4 {[%emt 0:02:25]} a5 {[%emt 0:05:40]} 22. Rac1 {[%emt 0:01:12]} Rbc8 {[%emt 0:00:34]} 23. Qb1 {[%emt 0:04:58]} Rb8 {[%emt 0:11:06]} 24. Qa1 {[%emt 0:06:56]} Qd6 {[%emt 0:06:49]} 25. Qc3 {[%emt 0:03:04]} Rbc8 {[%emt 0:01:55]} 26. Qe3 {[%emt 0:01:06]} h6 {[%emt 0:01:48]} 27. Qf2 {[%emt 0:02:35]} Qb8 {[%emt 0:03:27]} 1/2-1/2

[Event "ESCC Women 65 2019"]
[Site "Halkidik"]
[Date "2019.04.09"]
[Round "2.2"]
[White "Ristoja, Aulikki"]
[Black "Khmiadashvili, Tamar"]
[Result "1/2-1/2"]
[ECO "A45"]
[WhiteElo "1551"]
[BlackElo "1976"]
[Annotator "NA"]
[PlyCount "133"]
[EventDate "2019.04.06"]
[EventType "swiss"]
[EventCountry "GRE"]
[SourceTitle "playchess.com"]
[Source "ChessBase"]
[SourceQuality "1"]
[TimeControl "40/5400+30:1800+30"]

1. d4 {[%emt 0:03:10]} e6 {[%emt 0:00:03]} 2. Bf4 {[%emt 0:01:07]} Nf6 {[%emt 0:00:14]} 3. e3 {[%emt 0:00:15]} b6 {[%emt 0:00:32]} 4. Be2 {[%emt 0:01:39]} Bb7 {[%emt 0:00:08]} 5. Bf3 {[%emt 0:00:25]} d5 {[%emt 0:00:31]} 6. Nd2 {[%emt 0:03:03]} Bd6 {[%emt 0:03:16]} 7. Bxd6 {[%emt 0:01:51]} Qxd6 {[%emt 0:00:10]} 8. c3 {[%emt 0:02:07]} Nbd7 {[%emt 0:02:12]} 9. Qc2 {[%emt 0:03:39]} e5 {[%emt 0:02:22]} 10. dxe5 {[%emt 0:03:12]} Nxe5 {[%emt 0:00:35]} 11. h3 {[%emt 0:03:28]} O-O {[%emt 0:01:44]} 12. O-O-O {[%emt 0:01:00]} Nxf3 $15 {[%emt 0:07:38]} 13. gxf3 {[%emt 0:03:04]} Ba6 {[%emt 0:07:51]} 14. h4 {[%emt 0:05:08]} Nh5 {[%emt 0:04:48]} 15. Nh3 {[%emt 0:03:17]} g6 {[%emt 0:06:17]} 16. Ne4 {[%emt 0:04:51]} Qe5 {[%emt 0:02:19]} 17. Nd2 {[%emt 0:04:17]} Qf6 {[%emt 0:05:03]} 18. f4 {[%emt 0:02:42]} Bc8 {[%emt 0:06:41]} 19. Nf3 {[%emt 0:01:27]} Bg4 {[%emt 0:04:47]} 20. Qe2 {[%emt 0:00:39]} Rfe8 {[%emt 0:01:46]} 21. Rxd5 {[%emt 0:02:36]} Bxh3 {[%emt 0:09:09]} 22. Rxh5 {[%emt 0:00:45]} Bg4 {[%emt 0:10:31]} 23. Rg5 {[%emt 0:06:49]} h5 {[%emt 0:00:20]} 24. Rxg4 {[%emt 0:02:27]} hxg4 {[%emt 0:00:03]} 25. Ne5 {[%emt 0:00:58]} Qe6 {[%emt 0:07:08]} 26. Qxg4 {[%emt 0:06:50]} Qxg4 {[%emt 0:00:44]} 27. Nxg4 {[%emt 0:00:04]} Kg7 {[%emt 0:00:40]} 28. h5 {[%emt 0:04:45]} gxh5 {[%emt 0:04:22]} 29. Rxh5 {[%emt 0:00:48]} f6 {[%emt 0:02:39]} 30. Rh3 {[%emt 0:08:09]} Rad8 {[%emt 0:02:33]} 31. Kc2 {[%emt 0:01:22]} Rd6 {[%emt 0:03:25]} 32. Rg3 {[%emt 0:01:58]} Kh7 {[%emt 0:00:40]} 33. Rh3+ {[%emt 0:02:13]} Kg6 {[%emt 0:00:12]} 34. Rg3 {[%emt 0:06:28]} Kf5 {[%emt 0:01:25]} 35. Nh6+ {[%emt 0:02:17]} Ke4 {[%emt 0:00:57]} 36. Rg7 {[%emt 0:02:36]} Rc6 {[%emt 0:01:42]} 37. Ng4 {[%emt 0:02:14]} Rd8 {[%emt 0:01:08]} 38. Re7+ {[%emt 0:01:59]} Kf3 {[%emt 0:00:07]} 39. Rg7 {[%emt 0:00:02]} a5 {[%emt 0:00:44]} 40. Rg6 {[%emt 0:00:00]} Rcd6 {[%emt 0:00:00]} 41. Kb3 {[%emt 0:01:44]} Rf8 {[%emt 0:01:49]} 42. a4 {[%emt 0:01:11]} f5 {[%emt 0:11:59]} 43. Ne5+ {[%emt 0:00:54]} Kxf2 {[%emt 0:00:19]} 44. Rg7 {[%emt 0:00:24]} Re6 {[%emt 0:04:21]} 45. Nc4 {[%emt 0:02:32]} Rxe3 {[%emt 0:10:41]} 46. Nxe3 {[%emt 0:00:08]} Kxe3 {[%emt 0:00:02]} 47. Rxc7 {[%emt 0:00:07]} Kxf4 {[%emt 0:01:08]} 48. Rc6 {[%emt 0:01:06]} Rb8 {[%emt 0:00:51]} 49. Kc4 {[%emt 0:01:10]} Kf3 {[%emt 0:03:37]} 50. Kb5 {[%emt 0:00:58]} f4 {[%emt 0:00:09]} 51. Rf6 {[%emt 0:01:56]} Ke3 {[%emt 0:00:26]} 52. Ka6 {[%emt 0:00:41]} f3 {[%emt 0:00:23]} 53. Ka7 {[%emt 0:01:07]} Re8 {[%emt 0:01:19]} 54. Kxb6 {[%emt 0:00:41]} Rb8+ {[%emt 0:00:28]} 55. Kxa5 {[%emt 0:00:03]} Rxb2 {[%emt 0:00:04]} 56. c4 {[%emt 0:02:15]} f2 {[%emt 0:00:48]} 57. c5 {[%emt 0:00:39]} Rb1 {[%emt 0:01:35]} 58. c6 {[%emt 0:00:30]} f1=Q {[%emt 0:00:18]} 59. Rxf1 {[%emt 0:00:02]} Rxf1 {[%emt 0:00:01]} 60. c7 {[%emt 0:00:52]} Rc1 {[%emt 0:00:51]} 61. Kb6 {[%emt 0:00:07]} Kd4 {[%emt 0:00:29]} 62. a5 {[%emt 0:03:19]} Kd5 {[%emt 0:00:55]} 63. Kb7 {[%emt 0:06:28]} Rb1+ {[%emt 0:00:37]} 64. Ka7 {[%emt 0:01:32]} Rc1 {[%emt 0:00:10]} 65. Kb8 {[%emt 0:00:21]} Rb1+ {[%emt 0:00:14]} 66. Ka7 {[%emt 0:02:37]} Rc1 {[%emt 0:00:07]} 67. Kb7 {[%emt 0:01:16]} 1/2-1/2

[Event "ESCC Women 65 2019"]
[Site "Halkidik"]
[Date "2019.04.07"]
[Round "2.3"]
[White "Sorokina, Tamara"]
[Black "Burchardt, Brigitte"]
[Result "1/2-1/2"]
[ECO "D04"]
[WhiteElo "2051"]
[BlackElo "2136"]
[Annotator "NA"]
[PlyCount "59"]
[EventDate "2019.04.06"]
[EventType "swiss"]
[EventCountry "GRE"]
[SourceTitle "playchess.com"]
[Source "ChessBase"]
[SourceQuality "1"]
[TimeControl "40/5400+30:1800+30"]

1. d4 {[%emt 0:00:00]} d5 {[%emt 0:00:00]} 2. Nf3 {[%emt 0:00:00]} Nf6 {[%emt 0:00:21]} 3. e3 {[%emt 0:00:00]} Bf5 {[%emt 0:02:14]} 4. Be2 {[%emt 0:00:04]} h6 {[%emt 0:04:19]} 5. O-O {[%emt 0:00:13]} Nbd7 {[%emt 0:02:12]} 6. c4 {[%emt 0:00:32]} e6 {[%emt 0:01:09]} 7. Nc3 {[%emt 0:00:37]} Be7 {[%emt 0:04:28]} 8. Qb3 {[%emt 0:02:52]} dxc4 {[%emt 0:23:01]} 9. Bxc4 {[%emt 0:00:33]} Nb6 {[%emt 0:03:22]} 10. Be2 {[%emt 0:00:31]} O-O {[%emt 0:04:28]} 11. a3 {[%emt 0:04:35]} c6 {[%emt 0:05:04]} 12. Bd2 {[%emt 0:09:04]} Bd6 {[%emt 0:07:13]} 13. Rfd1 {[%emt 0:03:46]} Qe7 {[%emt 0:03:06]} 14. Be1 $11 {[%emt 0:02:28]} Rac8 {[%emt 0:05:48]} 15. h3 {[%emt 0:03:25]} Rc7 {[%emt 0:09:44]} 16. Bf1 {[%emt 0:09:01]} Nfd5 {[%emt 0:05:08]} 17. Bd3 {[%emt 0:07:10]} Bxd3 {[%emt 0:03:41]} 18. Rxd3 {[%emt 0:00:01]} Nxc3 {[%emt 0:01:13]} 19. Bxc3 {[%emt 0:02:58]} Nd5 {[%emt 0:00:04]} 20. e4 {[%emt 0:01:59]} Nxc3 {[%emt 0:01:37]} 21. Rxc3 {[%emt 0:02:37]} Rd7 {[%emt 0:01:47]} 22. Rd3 {[%emt 0:01:42]} Rfd8 {[%emt 0:01:36]} 23. Rad1 {[%emt 0:00:25]} Bb8 {[%emt 0:00:32]} 24. Qc2 {[%emt 0:13:46]} a6 {[%emt 0:01:43]} 25. g3 {[%emt 0:03:05]} Qf6 {[%emt 0:00:51]} 26. Kg2 {[%emt 0:00:47]} Qg6 {[%emt 0:01:37]} 27. Qe2 {[%emt 0:00:37]} Qh5 {[%emt 0:02:12]} 28. Qc2 {[%emt 0:04:07]} Qg6 {[%emt 0:00:07]} 29. Qe2 {[%emt 0:00:05]} Qh5 {[%emt 0:00:31]} 30. Qc2 {[%emt 0:00:10]} 1/2-1/2

[Event "ESCC Women 65 2019"]
[Site "Halkidik"]
[Date "2019.04.07"]
[Round "2.4"]
[White "Titorenko, Natalia I"]
[Black "Gaprindashvili, Nona"]
[Result "0-1"]
[ECO "B00"]
[WhiteElo "2153"]
[BlackElo "2294"]
[Annotator "ChessBase"]
[PlyCount "152"]
[EventDate "2019.04.06"]
[EventType "swiss"]
[EventCountry "GRE"]
[SourceTitle "playchess.com"]
[Source "ChessBase"]
[SourceQuality "1"]
[TimeControl "40/5400+30:1800+30"]

1. e4 {[%emt 0:00:00]} b6 {[%emt 0:00:00]} 2. d4 {[%emt 0:00:00]} Bb7 {[%emt 0:00:00]} 3. Bd3 {[%emt 0:00:00]} g6 {[%emt 0:00:00]} 4. Nf3 {[%emt 0:00:56]} Bg7 {[%emt 0:00:08]} 5. h4 {[%emt 0:01:58]} h5 {[%emt 0:02:45]} 6. Qe2 {[%emt 0:09:29]} c5 {[%emt 0:06:13]} 7. c3 {[%emt 0:00:28]} cxd4 {[%emt 0:00:02]} 8. Nxd4 {[%emt 0:05:06]} a6 {[%emt 0:03:20]} 9. Nd2 {[%emt 0:05:50]} d6 {[%emt 0:01:57]} 10. N2f3 {[%emt 0:22:28]} Nd7 {[%emt 0:00:52]} 11. Bc4 {[%emt 0:12:32]} Qc8 {[%emt 0:19:28]} 12. a4 {[%emt 0:07:14]} Ngf6 {[%emt 0:02:59]} 13. Ng5 {[%emt 0:02:51]} O-O {[%emt 0:02:14]} 14. Ndf3 {[%emt 0:04:41]} d5 {[%emt 0:18:11]} 15. exd5 {[%emt 0:00:36]} Bxd5 {[%emt 0:06:32]} 16. Bxd5 {[%emt 0:00:46]} Nxd5 {[%emt 0:00:02]} 17. O-O {[%emt 0:00:58]} e6 {[%emt 0:18:51]} 18. Nh3 {[%emt 0:04:39]} Qc6 {[%emt 0:02:56]} 19. Be3 {[%emt 0:10:20]} Nxe3 {[%emt 0:00:31]} 20. Qxe3 {[%emt 0:00:02]} Nc5 {[%emt 0:01:18]} 21. Nd4 {[%emt 0:04:16]} Qd7 {[%emt 0:02:01]} 22. Rfd1 {[%emt 0:01:27]} Rfd8 {[%emt 0:01:44]} 23. Qf3 {[%emt 0:01:35]} Qe8 {[%emt 0:00:17]} 24. a5 {[%emt 0:01:20]} b5 {[%emt 0:00:50]} 25. Ng5 {[%emt 0:01:43]} Rd5 {[%emt 0:01:07]} 26. Ne4 {[%emt 0:00:27]} Nxe4 {[%emt 0:00:48]} 27. Qxe4 {[%emt 0:00:01]} Rad8 {[%emt 0:00:05]} 28. Qf3 {[%emt 0:00:49]} Qd7 {[%emt 0:00:22]} 29. Re1 {[%emt 0:00:27]} Bxd4 {[%emt 0:00:13]} 30. cxd4 {[%emt 0:00:01]} Rxd4 {[%emt 0:00:01]} 31. Re4 {[%emt 0:00:18]} Rd1+ {[%emt 0:00:48]} 32. Rxd1 {[%emt 0:00:02]} Qxd1+ {[%emt 0:00:16]} 33. Qxd1 {[%emt 0:00:01]} Rxd1+ {[%emt 0:00:11]} 34. Kh2 {[%emt 0:00:01]} Rd2 {[%emt 0:00:12]} 35. b4 {[%emt 0:00:57]} Rxf2 {[%emt 0:01:22]} 36. Rd4 {[%emt 0:00:01]} Rb2 {[%emt 0:00:34]} 37. Kh3 {[%emt 0:01:13]} Kg7 {[%emt 0:00:32]} 38. Rd6 {[%emt 0:00:22]} Rxb4 {[%emt 0:00:03]} 39. Rxa6 {[%emt 0:00:05]} Rb3+ {[%emt 0:00:34]} 40. Kh2 {[%emt 0:00:00]} Ra3 {[%emt 0:00:00]} 41. Ra7 {[%emt 0:06:20]} b4 {[%emt 0:00:35]} 42. a6 {[%emt 0:01:33]} b3 {[%emt 0:00:11]} 43. g3 {[%emt 0:04:05]} Ra2+ {[%emt 0:01:27]} 44. Kh3 {[%emt 0:00:02]} e5 {[%emt 0:02:13]} 45. Rb7 {[%emt 0:05:47]} Rxa6 {[%emt 0:00:10]} 46. Rxb3 {[%emt 0:00:01]} Ra2 {[%emt 0:00:11]} 47. Rb8 {[%emt 0:02:43]} Kf6 {[%emt 0:00:58]} 48. Rb6+ {[%emt 0:05:19]} Kf5 {[%emt 0:00:13]} 49. Rb7 {[%emt 0:00:54]} f6 {[%emt 0:00:33]} 50. Rb8 {[%emt 0:01:50]} Ra5 {[%emt 0:09:39]} 51. Rb2 {[%emt 0:06:27]} e4 {[%emt 0:01:01]} 52. Rf2+ {[%emt 0:00:39]} Ke5 {[%emt 0:00:03]} 53. Kg2 {[%emt 0:01:48]} Rd5 {[%emt 0:08:11]} 54. Ra2 {[%emt 0:01:23]} Rd3 {[%emt 0:04:03]} 55. Ra5+ {[%emt 0:00:39]} Kd4 {[%emt 0:01:16]} 56. Ra6 {[%emt 0:00:17]} Rd2+ {[%emt 0:00:54]} 57. Kf1 {[%emt 0:00:41]} Ke5 {[%emt 0:00:10]} 58. Ra5+ {[%emt 0:00:40]} Rd5 {[%emt 0:00:14]} 59. Ra6 {[%emt 0:00:52]} Kf5 {[%emt 0:01:58]} 60. Kg2 {[%emt 0:00:30]} Rd2+ {[%emt 0:01:35]} 61. Kf1 {[%emt 0:00:31]} g5 {[%emt 0:01:31]} 62. hxg5 {[%emt 0:00:33]} fxg5 {[%emt 0:00:02]} 63. Ra4 {[%emt 0:00:28]} Kg4 {[%emt 0:00:29]} 64. Rxe4+ {[%emt 0:00:10]} Kxg3 {[%emt 0:00:02]} 65. Re3+ {[%emt 0:00:21]} Kf4 {[%emt 0:00:04]} 66. Ra3 {[%emt 0:00:18]} h4 {[%emt 0:04:20]} 67. Kg1 {[%emt 0:00:45]} Rd4 {[%emt 0:01:00]} 68. Kg2 {[%emt 0:01:13]} g4 {[%emt 0:00:03]} 69. Ra2 {[%emt 0:00:19]} Re4 {[%emt 0:01:45]} 70. Rf2+ {[%emt 0:00:14]} Kg5 {[%emt 0:00:52]} 71. Ra2 {[%emt 0:00:56]} h3+ {[%emt 0:00:12]} 72. Kh2 {[%emt 0:00:40]} Kh4 {[%emt 0:00:13]} 73. Ra1 {[%emt 0:00:13]} g3+ {[%emt 0:00:18]} 74. Kg1 {[%emt 0:00:32]} Kg4 {[%emt 0:00:14]} 75. Kh1 {[%emt 0:00:15]} Re2 {[%emt 0:00:43]} 76. Kg1 {[%emt 0:00:23]} h2+ {[%emt 0:00:33]} 0-1

[Event "ESCC Women 65 2019"]
[Site "Halkidik"]
[Date "2019.04.07"]
[Round "2.5"]
[White "Sinchurina, Tatiana"]
[Black "Fatalibekova, Elena"]
[Result "1/2-1/2"]
[ECO "B72"]
[WhiteElo "1967"]
[BlackElo "2148"]
[Annotator "NA"]
[PlyCount "42"]
[EventDate "2019.04.06"]
[EventType "swiss"]
[EventCountry "GRE"]
[SourceTitle "playchess.com"]
[Source "ChessBase"]
[SourceQuality "1"]
[TimeControl "40/5400+30:1800+30"]

1. e4 {[%emt 0:00:00]} c5 {[%emt 0:00:00]} 2. Nf3 {[%emt 0:00:00]} Nc6 {[%emt 0:00:00]} 3. d4 {[%emt 0:00:00]} cxd4 {[%emt 0:00:00]} 4. Nxd4 {[%emt 0:00:06]} Nf6 {[%emt 0:00:59]} 5. Nc3 {[%emt 0:00:36]} d6 {[%emt 0:00:17]} 6. Be2 {[%emt 0:01:14]} g6 {[%emt 0:00:17]} 7. Be3 {[%emt 0:01:03]} Bg7 {[%emt 0:00:06]} 8. h3 {[%emt 0:02:10]} O-O {[%emt 0:00:54]} 9. Qd2 {[%emt 0:00:34]} d5 {[%emt 0:09:30]} 10. Nxc6 {[%emt 0:03:08]} bxc6 {[%emt 0:00:02]} 11. e5 {[%emt 0:00:28]} Ne4 {[%emt 0:07:30]} 12. Qd4 {[%emt 0:25:48]} c5 $11 {[%emt 0:27:17]} 13. Qxd5 {[%emt 0:01:03]} Nxc3 {[%emt 0:00:02]} 14. Qxd8 {[%emt 0:04:30]} Rxd8 {[%emt 0:00:02]} 15. bxc3 {[%emt 0:02:18]} Bxe5 {[%emt 0:00:34]} 16. O-O {[%emt 0:01:49]} Bxc3 {[%emt 0:02:18]} 17. Rad1 {[%emt 0:00:35]} Be6 {[%emt 0:06:33]} 18. Bxc5 {[%emt 0:01:19]} Bxa2 {[%emt 0:15:53]} 19. Rxd8+ {[%emt 0:02:57]} Rxd8 {[%emt 0:00:01]} 20. Bxa7 {[%emt 0:00:14]} Be6 {[%emt 0:02:44]} 21. Rd1 {[%emt 0:03:27]} Rxd1+ {[%emt 0:03:51]} 1/2-1/2